bitfinex/quotes_SOLUSD_20220210
["timestamp","ask_amount","ask_price","bid_price","bid_amount"]
[1644509713965,24.1047,111.73,111.65,0.15148423]
[1644509714162,48.81234827,111.71,111.65,0.15148423]
[1644509714365,2.0162174,111.68,111.65,0.15148423]
[1644509714564,38.48219787,111.67,111.65,0.15148423]
[1644509714762,2.0162174,111.66,111.65,0.15148423]
[1644509714968,2.0162174,111.66,111.65,0.00148423]
[1644509715164,4.24743894,111.66,111.65,0.00148423]
[1644509715964,2.0162174,111.66,111.65,0.00148423]
[1644509717064,14.91743894,111.66,111.65,0.00148423]
[1644509717365,12.9362174,111.66,111.65,0.00148423]
[1644509717564,131.0,111.65,111.55,0.024]
[1644509717765,24.1172,111.64,111.55,0.024]
[1644509717965,26.34842154,111.64,111.54,0.44809644]
[1644509718267,131.0,111.62,111.5,0.024]
[1644509718465,10.67,111.61,111.48,0.024]
[1644509718666,12.90122154,111.61,111.47,0.024]
[1644509718866,15.68102154,111.6,111.45,0.024]
[1644509719066,10.67,111.59,111.44,0.024]
[1644509719266,12.90122154,111.59,111.44,0.024]
[1644509719570,38.33534557,111.58,111.44,0.024]
[1644509719775,38.33534557,111.58,111.42,0.024]
[1644509719776,2.0162174,111.52,111.42,0.024]
[1644509719968,10.67,111.51,111.39,0.024]
[1644509720167,2.0162174,111.5,111.38,0.024]
[1644509720370,10.67,111.49,111.38,0.024]
[1644509720568,39.4402027,111.48,111.38,0.024]
[1644509720770,50.1102027,111.48,111.38,0.024]
[1644509721766,50.1102027,111.48,111.38,1.60707056]
[1644509721967,2.0162174,111.5,111.38,1.60707056]
[1644509722271,2.0162174,111.5,111.39,0.024]
[1644509722667,2.0162174,111.5,111.4,16.14208213]
[1644509722869,41.32748139,111.5,111.41,40.292255]
[1644509723066,2.0162174,111.5,111.41,56.43433713]
[1644509723267,2.0162174,111.5,111.42,1.58998891]
[1644509723666,2.0162174,111.5,111.42,7.83998891]
[1644509723867,2.0162174,111.5,111.42,1.83998891]
[1644509724068,48.19206694,111.49,111.43,32.43661314]
[1644509724269,2.0162174,111.5,111.43,32.43661314]
[1644509724470,2.0162174,111.5,111.43,34.02660205]
[1644509724708,2.0162174,111.52,111.44,2.03998891]
[1644509724906,10.67,111.62,111.46,0.45]
[1644509725111,0.0062174,111.48,111.47,10.67]
[1644509725403,0.0062174,111.48,111.47,43.14234139]
[1644509726005,0.0062174,111.48,111.47,58.43453027]
[1644509726802,0.0062174,111.48,111.47,56.84454136]
[1644509727005,0.0062174,111.48,111.47,58.88453027]
[1644509727202,0.25,111.61,111.48,144.4445]
[1644509727404,0.25,111.61,111.49,10.67]
[1644509727605,2.23122154,111.6,111.49,0.024]
[1644509727803,2.23122154,111.6,111.5,0.024]
[1644509728205,34.80232893,111.59,111.5,0.024]
[1644509728805,2.23122154,111.58,111.48,0.024]
[1644509729004,48.16240543,111.57,111.48,0.024]
[1644509729206,48.16240543,111.57,111.47,34.88414142]
[1644509729605,48.16240543,111.57,111.48,1.58998891]
[1644509729806,48.16240543,111.57,111.49,37.86872672]
[1644509730407,48.16240543,111.57,111.49,38.11872672]
[1644509730910,72.6997,111.69,111.51,0.45]
[1644509731111,69.2237,111.74,111.55,0.45]
[1644509731308,69.2237,111.74,111.52,10.67]
[1644509731309,69.2237,111.74,111.56,11.12]
[1644509731509,69.2237,111.74,111.57,10.67]
[1644509731709,35.72735287,111.73,111.58,34.86014142]
[1644509731909,49.16275287,111.73,111.59,10.67]
[1644509732108,49.16275287,111.73,111.52,8.14573747]
[1644509732109,90.17,111.71,111.52,8.14573747]
[1644509732309,0.31227428,111.66,111.41,1.24537042]
[1644509732512,10.67,111.65,111.4,23.9744]
[1644509732710,20.95798159,111.65,111.42,10.67]
[1644509732910,96.6595562,111.64,111.44,39.73668985]
[1644509733111,10.67,111.63,111.44,50.40668985]
[1644509733309,35.12847782,111.61,111.45,0.45]
[1644509733509,35.12847782,111.61,111.48,0.45]
[1644509733809,35.12847782,111.61,111.5,39.73668985]
[1644509734008,35.12847782,111.61,111.51,10.67]
[1644509734207,22.9748,111.66,111.52,0.45]
[1644509734408,479.25617796,111.68,111.53,10.67]
[1644509734608,23.88,111.68,111.53,10.67]
[1644509735007,13.4463,111.66,111.5,39.73668985]
[1644509735211,37.09633175,111.64,111.5,39.73668985]
[1644509735608,37.09633175,111.64,111.5,56.85668985]
[1644509735809,37.09633175,111.64,111.52,0.45]
[1644509736010,37.09633175,111.64,111.53,10.67]
[1644509736308,37.09633175,111.64,111.54,34.60223233]
[1644509736608,37.09633175,111.64,111.54,45.27223233]
[1644509736808,37.09633175,111.64,111.54,51.52223233]
[1644509737011,24.8048,111.71,111.54,51.52223233]
[1644509737210,46.5795,111.74,111.55,90.17]
[1644509737409,48.81072154,111.74,111.56,11.12]
[1644509737609,46.5795,111.74,111.56,11.12]
[1644509737815,46.5795,111.74,111.58,0.45]
[1644509737816,22.5634,111.74,111.58,0.45]
[1644509738010,38.57050144,111.73,111.61,0.45]
[1644509738614,24.2861,111.78,111.63,0.45]
[1644509738911,24.2861,111.78,111.6,36.10359448]
[1644509738912,36.7172,111.79,111.62,10.67]
[1644509739112,36.7172,111.79,111.63,10.67]
[1644509739312,16.71048824,111.78,111.63,10.92]
[1644509739514,27.38048824,111.78,111.63,10.67]
[1644509739712,13.4335,111.76,111.59,24.1024]
[1644509739912,10.97466931,111.75,111.57,1.24537042]
[1644509740112,37.89230766,111.75,111.57,1.24537042]
[1644509740314,35.91108612,111.75,111.57,11.91537042]
[1644509740513,2.23122154,111.74,111.57,11.91537042]
[1644509740712,15.66582154,111.74,111.59,13.4335]
[1644509740914,42.53860094,111.73,111.6,29.45236571]
[1644509741111,44.76982248,111.73,111.6,29.45236571]
[1644509741716,42.53860094,111.73,111.6,29.45236571]
[1644509741914,42.53860094,111.73,111.63,36.01272048]
[1644509742115,42.53860094,111.73,111.63,46.68272048]
[1644509742714,42.53860094,111.73,111.63,52.93272048]
[1644509743814,42.53860094,111.73,111.64,13.427]
[1644509744015,47.7753,111.76,111.64,24.097]
[1644509744213,47.7753,111.76,111.64,30.347]
[1644509744615,23.6125,111.76,111.64,16.92]
[1644509744814,1.25787168,111.85,111.69,0.45]
[1644509745018,36.33662014,111.84,111.7,10.67]
[1644509745416,36.33662014,111.84,111.71,38.26690008]
[1644509745619,36.33662014,111.84,111.72,10.67]
[1644509745917,36.33662014,111.84,111.73,36.0720221]
[1644509746116,36.58662014,111.84,111.73,36.0720221]
[1644509746519,36.58662014,111.84,111.73,36.3220221]
[1644509747117,36.58662014,111.84,111.73,36.0720221]
[1644509747321,38.81784168,111.84,111.71,0.024]
[1644509747518,68.154512,111.84,111.71,0.024]
[1644509747718,68.154512,111.84,111.69,10.67]
[1644509747919,68.154512,111.84,111.7,0.024]
[1644509748122,36.33662014,111.84,111.7,0.024]
[1644509748320,36.33662014,111.84,111.71,0.024]
[1644509748519,36.33662014,111.84,111.72,10.67]
[1644509748720,2.23122154,111.83,111.73,29.53782337]
[1644509748920,34.28933152,111.82,111.73,29.53782337]
[1644509749722,34.53933152,111.82,111.73,29.53782337]
[1644509750526,36.77055306,111.82,111.73,29.53782337]
[1644509750728,34.53933152,111.82,111.73,29.53782337]
[1644509751952,2.23122154,111.81,111.71,0.024]
[1644509752552,34.53933152,111.82,111.71,0.024]
[1644509752753,36.35403508,111.8,111.71,37.91458163]
[1644509754253,36.35403508,111.8,111.71,0.024]
[1644509754455,36.35403508,111.8,111.69,0.024]
[1644509754456,38.58525662,111.8,111.69,0.024]
[1644509754655,38.58525662,111.8,111.65,10.694]
[1644509755155,36.35403508,111.8,111.66,48.49120195]
[1644509755356,2.23122154,111.79,111.67,0.024]
[1644509755557,34.97758467,111.78,111.67,0.024]
[1644509755961,2.23122154,111.77,111.67,0.024]
[1644509756158,37.73220036,111.76,111.67,0.024]
[1644509756358,37.73220036,111.76,111.66,48.49120195]
[1644509757758,51.16300036,111.76,111.66,48.49120195]
[1644509757958,34.7981,111.8,111.66,48.49120195]
[1644509758161,24.1281,111.8,111.67,0.024]
[1644509758959,46.89707833,111.79,111.67,0.024]
[1644509760562,24.1281,111.8,111.67,12.28871337]
[1644509760768,101.663,111.82,111.68,0.024]
[1644509760964,101.663,111.82,111.69,10.67]
[1644509761165,22.7181,111.82,111.69,19.41007379]
[1644509761362,22.7181,111.82,111.69,27.25478716]
[1644509761564,44.32457194,111.81,111.7,27.4424336]
[1644509761767,44.57457194,111.81,111.72,13.4191]
[1644509761965,44.57457194,111.81,111.73,38.80655189]
[1644509762164,0.25,111.81,111.73,38.80655189]
[1644509762366,24.5238,111.86,111.73,139.89655189]
[1644509762567,119.8009,111.89,111.74,1.59471337]
[1644509762766,46.3366,111.89,111.75,10.67]
[1644509762969,46.3366,111.89,111.79,13.4107]
[1644509763166,43.64820365,111.88,111.79,13.4107]
[1644509763367,43.64820365,111.88,111.8,39.19023272]
[1644509763770,43.89820365,111.88,111.8,39.19023272]
[1644509764373,46.3366,111.89,111.8,39.19023272]
[1644509764971,23.2309,111.89,111.8,39.19023272]
[1644509766375,23.4809,111.89,111.8,39.19023272]
[1644509766572,39.29711811,111.88,111.8,39.19023272]
[1644509766976,39.29711811,111.88,111.78,10.67]
[1644509767174,41.52833965,111.88,111.75,10.67]
[1644509767373,41.52833965,111.88,111.71,11.91537042]
[1644509767577,10.67,111.87,111.7,11.91537042]
[1644509767778,55.4121,111.87,111.69,11.91537042]
[1644509767979,71.15516215,111.86,111.7,42.10654439]
[1644509768181,10.67,111.85,111.7,42.10654439]
[1644509768476,34.53443215,111.84,111.7,42.10654439]
[1644509768676,34.53443215,111.84,111.7,42.35654439]
[1644509768878,47.95773215,111.84,111.7,42.10654439]
[1644509769076,10.67,111.83,111.7,42.10654439]
[1644509769278,10.67,111.83,111.7,55.52884439]
[1644509769475,38.35771691,111.82,111.7,55.52884439]
[1644509769703,38.35771691,111.82,111.7,42.10654439]
[1644509769875,40.58893845,111.82,111.7,42.10654439]
[1644509770078,64.68293845,111.82,111.67,1.24537042]
[1644509770277,51.25893845,111.82,111.66,0.024]
[1644509770477,122.03851013,111.82,111.66,0.024]
[1644509770675,122.03851013,111.82,111.64,1.24537042]
[1644509770876,122.03851013,111.82,111.65,0.024]
[1644509771076,135.46951013,111.82,111.65,48.03636944]
[1644509771483,134.21163845,111.82,111.65,49.28173986]
[1644509771677,135.71951013,111.82,111.65,49.28173986]
[1644509772478,135.46951013,111.82,111.65,49.28173986]
[1644509772678,133.23828859,111.82,111.65,49.28173986]
[1644509772878,133.23828859,111.82,111.65,62.71023986]
[1644509773182,133.23828859,111.82,111.65,62.96023986]
[1644509773585,131.98041691,111.82,111.66,1.24537042]
[1644509773779,121.31041691,111.82,111.67,36.99655274]
[1644509774084,121.31041691,111.82,111.67,68.03094455]
[1644509774279,121.31041691,111.82,111.67,68.28094455]
[1644509774682,121.56041691,111.82,111.67,80.21157413]
[1644509774880,121.56041691,111.82,111.67,50.67255274]
[1644509775080,121.56041691,111.82,111.67,50.42255274]
[1644509775683,12.90122154,111.81,111.67,36.99655274]
[1644509775882,44.50100075,111.8,111.67,36.99655274]
[1644509776082,13.4272,111.79,111.67,37.24655274]
[1644509776283,47.73789965,111.78,111.67,36.99655274]
[1644509776486,47.73789965,111.78,111.67,26.32655274]
[1644509778285,47.73789965,111.78,111.65,1.24537042]
[1644509778485,94.73502119,111.78,111.64,14.69877042]
[1644509778985,92.50379965,111.78,111.64,1.26937042]
[1644509779287,92.75379965,111.78,111.65,35.72376074]
[1644509779486,92.75379965,111.78,111.65,36.96913116]
[1644509779686,92.75379965,111.78,111.65,37.21913116]
[1644509780086,92.75379965,111.78,111.65,36.96913116]
[1644509780288,94.98502119,111.78,111.65,35.72376074]
[1644509780686,92.75379965,111.78,111.65,35.72376074]
[1644509780887,92.75379965,111.78,111.65,37.56847411]
[1644509781088,47.73789965,111.78,111.65,37.21913116]
[1644509781991,47.73789965,111.78,111.65,36.96913116]
[1644509782189,94.73372119,111.78,111.65,36.96913116]
[1644509782388,105.40372119,111.78,111.65,35.72376074]
[1644509782789,103.42249965,111.78,111.65,35.72376074]
[1644509784390,103.42249965,111.78,111.65,35.97376074]
[1644509784599,103.42249965,111.78,111.65,35.72376074]
[1644509784792,13.4272,111.79,111.65,37.21913116]
[1644509784993,13.4272,111.79,111.66,10.67]
[1644509785193,24.6486,111.8,111.67,90.17]
[1644509785391,24.6486,111.8,111.68,10.67]
[1644509785592,24.6486,111.8,111.68,12.26375157]
[1644509785797,24.6486,111.8,111.72,13.4207]
[1644509785993,24.6486,111.8,111.73,35.72376074]
[1644509786194,1.25787168,111.85,111.73,35.72376074]
[1644509786494,71.67157168,111.88,111.74,10.67]
[1644509786694,24.95467168,111.88,111.75,90.17]
[1644509786895,23.6968,111.88,111.76,10.67]
[1644509787097,45.73892485,111.87,111.77,38.61516144]
[1644509787295,45.73892485,111.87,111.78,10.67]
[1644509787495,23.6968,111.88,111.79,35.72376074]
[1644509788592,47.35285101,111.87,111.79,35.72376074]
[1644509788793,37.111,111.88,111.79,35.72376074]
[1644509789092,23.6968,111.88,111.79,35.72376074]
[1644509789698,46.25584466,111.87,111.79,49.13626074]
[1644509789894,46.25584466,111.87,111.79,35.72376074]
[1644509790095,46.25584466,111.87,111.76,10.67]
[1644509790299,48.4870662,111.87,111.73,10.67]
[1644509790699,48.7370662,111.87,111.73,10.92]
[1644509790895,48.7370662,111.87,111.73,10.67]
[1644509791101,11.92787168,111.86,111.74,38.77166175]
[1644509791298,47.92963885,111.85,111.74,38.77166175]
[1644509792096,13.4236,111.85,111.75,13.4173]
[1644509792300,23.6968,111.88,111.75,0.25]
[1644509792598,23.6968,111.88,111.75,10.92]
[1644509792995,23.6968,111.88,111.75,10.67]
[1644509793196,50.75835309,111.87,111.76,35.56726043]
[1644509793797,50.75835309,111.87,111.76,35.81726043]
[1644509794197,50.75835309,111.87,111.76,35.56726043]
[1644509794999,50.75835309,111.87,111.76,35.81726043]
[1644509795199,0.25,111.87,111.76,46.48726043]
[1644509795400,59.792,111.89,111.76,46.48726043]
[1644509795604,1.25787168,111.91,111.76,61.22733422]
[1644509795801,1.25787168,111.91,111.76,76.74785499]
[1644509796008,1.25787168,111.92,111.76,76.74785499]
[1644509796203,1.25787168,111.92,111.76,91.01635561]
[1644509796401,71.274,111.94,111.76,91.01635561]
[1644509796402,24.15707168,111.94,111.79,0.45]
[1644509796602,1.25787168,111.94,111.82,0.45]
[1644509796800,1.25787168,111.95,111.83,13.16]
[1644509797002,1.25787168,111.97,111.84,10.67]
[1644509797201,1.25787168,111.97,111.85,38.77166175]
[1644509797405,1.25787168,111.97,111.86,10.67]
[1644509797601,1.25787168,111.98,111.9,13.3992]
[1644509797803,1.25787168,111.98,111.9,24.3192]
[1644509798003,1.25787168,111.99,111.9,34.9052]
[1644509798202,1.25787168,112.01,111.91,35.56726043]
[1644509798403,42.42555666,112.03,111.92,10.67]
[1644509798603,41.16768498,112.03,111.94,35.7806839]
[1644509799004,42.42555666,112.03,111.94,35.7806839]
[1644509799602,1.25787168,112.02,111.94,35.7806839]
[1644509799803,38.45436659,112.01,111.94,35.7806839]
[1644509800204,38.70436659,112.01,111.94,35.7806839]
[1644509801507,38.45436659,112.01,111.94,35.7806839]
[1644509801710,1.25787168,112.04,111.94,35.7806839]
[1644509801908,37.51857168,112.05,111.94,35.7806839]
[1644509802310,36.2607,112.05,111.94,36.0306839]
[1644509802512,22.8654,112.05,111.94,36.0306839]
[1644509802711,1.25787168,112.07,111.94,46.7006839]
[1644509802909,26.16094336,112.1,111.94,46.7006839]
[1644509802910,1.25787168,112.09,111.94,66.5433839]
[1644509803208,23.6452,112.1,111.94,66.5433839]
[1644509803610,23.6452,112.1,111.94,66.0933839]
[1644509803811,45.10198271,112.09,111.94,66.0933839]
[1644509804612,98.1907,112.11,111.95,0.45]
[1644509804812,24.2286,112.11,111.98,13.3862]
[1644509805017,1.70596812,112.12,111.99,10.67]
[1644509805214,0.44809644,112.12,112.0,0.45]
[1644509805414,1.25787168,112.16,112.02,131.0]
[1644509805615,1.25787168,112.18,112.04,0.32060079]
[1644509805815,227.31898757,112.2,112.05,10.67]
[1644509806015,226.06111589,112.2,112.05,10.67]
[1644509806214,0.03459839,112.2,112.05,30.2964]
[1644509806715,0.03459839,112.2,112.07,0.45]
[1644509807018,33.3363,112.27,112.08,10.67]
[1644509807019,0.03459839,112.21,112.08,10.67]
[1644509807236,0.03459839,112.24,112.09,13.372]
[1644509807438,0.03459839,112.21,112.09,10.67]
[1644509807638,12.93581993,112.23,112.06,46.03159273]
[1644509807836,2.26581993,112.2,112.1,38.52923301]
[1644509808038,39.4877184,112.2,112.1,38.52923301]
[1644509808237,2.23122154,112.2,112.1,38.52923301]
[1644509808436,13.41119839,112.22,112.1,38.52923301]
[1644509808638,0.03459839,112.23,112.11,10.67]
[1644509808837,0.03459839,112.22,112.11,10.67]
[1644509809038,0.03459839,112.23,112.11,10.67]
[1644509809238,0.03459839,112.22,112.12,35.36159273]
[1644509809438,0.03459839,112.23,112.13,10.67]
[1644509809637,2.23122154,112.27,112.13,10.67]
[1644509809638,0.03459839,112.25,112.14,38.52923301]
[1644509809840,0.03459839,112.26,112.14,49.19923301]
[1644509810040,2.26581993,112.25,112.14,49.19923301]
[1644509810240,2.23122154,112.25,112.14,49.19923301]
[1644509810438,0.03459839,112.25,112.14,49.19923301]
[1644509810640,2.26581993,112.27,112.14,49.19923301]
[1644509810838,0.03459839,112.25,112.14,49.19923301]
[1644509811039,45.06728014,112.27,112.14,49.19923301]
[1644509811040,45.10187853,112.27,112.14,49.19923301]
[1644509811239,0.03459839,112.25,112.14,49.19923301]
[1644509811444,45.10187853,112.27,112.14,49.19923301]
[1644509811640,0.03459839,112.25,112.14,49.19923301]
[1644509811843,45.10187853,112.27,112.14,49.44923301]
[1644509812040,45.10187853,112.27,112.14,49.19923301]
[1644509812041,0.03459839,112.25,112.14,49.19923301]
[1644509812241,2.23122154,112.26,112.14,38.52923301]
[1644509812442,2.23122154,112.24,112.14,38.52923301]
[1644509812644,39.88123347,112.23,112.14,38.52923301]
[1644509812844,0.03459839,112.25,112.14,38.77923301]
[1644509813043,2.26581993,112.26,112.14,38.77923301]
[1644509813242,0.03459839,112.25,112.14,38.52923301]
[1644509813442,34.9129,112.3,112.14,38.52923301]
[1644509813443,2.26581993,112.26,112.14,38.52923301]
[1644509813644,0.03459839,112.25,112.14,38.52923301]
[1644509813844,38.24543511,112.25,112.14,38.52923301]
[1644509814046,38.2800335,112.25,112.14,38.52923301]
[1644509814644,2.26581993,112.25,112.14,38.52923301]
[1644509815044,0.03459839,112.25,112.14,38.77923301]
[1644509815245,2.23122154,112.28,112.14,38.77923301]
[1644509815550,0.03459839,112.25,112.14,38.77923301]
[1644509815746,0.03459839,112.27,112.15,10.67]
[1644509815948,0.03459839,112.25,112.15,22.39991255]
[1644509816146,78.1897,112.35,112.18,0.45]
[1644509816349,48.4158,112.36,112.19,24.0286]
[1644509816546,48.4158,112.36,112.19,36.53851255]
[1644509816746,48.4158,112.36,112.2,36.57914096]
[1644509816747,83.97597201,112.36,112.2,36.57914096]
[1644509816946,48.4158,112.36,112.21,10.67]
[1644509817346,48.4158,112.36,112.21,46.87982077]
[1644509817946,48.4158,112.36,112.22,38.90541242]
[1644509818151,48.4158,112.36,112.23,10.67]
[1644509818451,2.23122154,112.41,112.23,63.47296228]
[1644509818646,2.23122154,112.41,112.23,73.25438108]
[1644509818946,2.23122154,112.41,112.24,13.354]
[1644509819149,35.22775479,112.4,112.25,45.65541332]
[1644509819547,38.47525928,112.38,112.25,34.98541332]
[1644509820047,2.23122154,112.37,112.25,34.98541332]
[1644509820246,35.04463985,112.36,112.25,34.98541332]
[1644509820450,35.04463985,112.36,112.13,0.45]
[1644509820648,162.34450729,112.35,112.11,7.0]
[1644509820850,186.55782917,112.35,112.07,0.45]
[1644509821048,237.71746295,112.34,112.04,220.8331]
[1644509821252,144.09,112.33,112.06,14.34701365]
[1644509821450,40.22459298,112.32,112.07,52.05860899]
[1644509821746,44.2215998,112.3,112.08,15.06923587]
[1644509821949,44.2215998,112.3,112.09,43.17221675]
[1644509821950,10.67,112.29,112.09,43.17221675]
[1644509822249,43.73370016,112.28,112.09,78.59678745]
[1644509822449,54.40370016,112.28,112.09,91.96768745]
[1644509822648,54.40370016,112.28,112.09,100.59334351]
[1644509823148,43.73370016,112.28,112.11,39.64725875]
[1644509823348,43.73370016,112.28,112.12,10.67]
[1644509823550,43.73370016,112.28,112.13,34.69356699]
[1644509823748,43.73370016,112.28,112.14,10.67]
[1644509823954,43.73370016,112.28,112.15,39.19725875]
[1644509824150,2.23122154,112.27,112.15,39.19725875]
[1644509824349,44.73581176,112.26,112.15,39.19725875]
[1644509825549,44.73581176,112.26,112.12,13.3716]
[1644509825754,12.90122154,112.25,112.07,13.3663]
[1644509825949,85.61442154,112.25,112.07,13.3663]
[1644509826152,2.23122154,112.24,112.07,26.7428]
[1644509826352,10.67,112.23,112.07,26.7428]
[1644509826550,47.16121631,112.23,112.08,40.93916718]
[1644509826751,47.16121631,112.23,112.08,51.85916718]
[1644509826951,36.49121631,112.23,112.1,1.45]
[1644509827151,36.49121631,112.23,112.11,43.62165856]
[1644509827354,36.49121631,112.23,112.11,57.24395856]
[1644509829752,124.55907168,112.32,112.11,80.34734144]
[1644509829953,0.03390509,112.31,112.12,103.535]
[1644509830154,0.03390509,112.31,112.14,44.994]
[1644509830353,24.2677,112.33,112.15,11.43918911]
[1644509830555,47.42567901,112.32,112.16,40.93916718]
[1644509830752,47.42567901,112.32,112.18,32.95165856]
[1644509830952,47.42567901,112.32,112.2,40.93916718]
[1644509831156,47.42567901,112.32,112.2,51.60916718]
[1644509831357,47.4595572,112.32,112.2,51.85916718]
[1644509832654,49.69077874,112.32,112.2,51.60916718]
[1644509833052,47.4595572,112.32,112.2,51.60916718]
[1644509833254,48.71742888,112.32,112.2,51.60916718]
[1644509833454,47.4595572,112.32,112.2,51.60916718]
[1644509833654,47.4595572,112.32,112.19,13.3623]
[1644509833655,1.25787168,112.31,112.19,13.3623]
[1644509833858,1.25787168,112.31,112.17,13.3671]
[1644509834056,3.52297141,112.3,112.15,10.67]
[1644509834254,11.92787168,112.29,112.15,6.0]
[1644509834457,0.03387819,112.28,112.15,6.0]
[1644509834656,42.01910166,112.28,112.16,37.7827705]
[1644509834854,41.98522347,112.28,112.16,37.7827705]
[1644509835153,1.25787168,112.26,112.16,37.7827705]
[1644509835355,39.63632406,112.25,112.16,37.7827705]
[1644509836054,43.12541728,112.25,112.11,27.14034698]
[1644509836260,1.29174987,112.24,112.11,16.47034698]
[1644509836458,1.29174987,112.24,112.08,16.47034698]
[1644509836655,1.25787168,112.22,112.05,16.47034698]
[1644509836856,1.29174987,112.21,112.05,16.47034698]
[1644509837054,39.23072138,112.21,112.06,60.64685194]
[1644509837253,45.02489811,112.19,112.06,60.64685194]
[1644509837454,45.0587763,112.19,112.06,60.64685194]
[1644509838055,45.0587763,112.19,112.06,77.11719892]
[1644509838656,0.03387819,112.19,112.06,89.37134593]
[1644509838857,0.03387819,112.2,112.06,95.62134593]
[1644509839063,0.03387819,112.2,112.06,199.09506689]
[1644509839257,0.03387819,112.2,112.07,53.20655606]
[1644509839457,0.03387819,112.2,112.09,13.3762]
[1644509839658,114.13205606,112.21,112.11,39.42111567]
[1644509839859,114.09817787,112.21,112.11,39.67111567]
[1644509840060,114.09817787,112.21,112.11,39.42111567]
[1644509840358,114.09817787,112.21,112.11,39.67111567]
[1644509840959,114.09817787,112.21,112.11,39.42111567]
[1644509841361,114.09817787,112.21,112.11,39.67111567]
[1644509841563,114.09817787,112.21,112.11,39.42111567]
[1644509841759,114.09817787,112.21,112.11,53.04321567]
[1644509842264,24.9327,112.21,112.11,53.04321567]
[1644509842463,1.25787168,112.23,112.11,71.09770966]
[1644509842661,1.29174987,112.24,112.12,10.67]
[1644509842962,1.25787168,112.24,112.12,55.4878]
[1644509843264,40.69594994,112.23,112.13,34.46971007]
[1644509843461,40.69594994,112.23,112.13,47.83951007]
[1644509843662,40.69594994,112.23,112.13,48.08951007]
[1644509844461,41.95382162,112.23,112.13,48.08951007]
[1644509844662,1.25787168,112.23,112.13,58.75951007]
[1644509844862,1.29174987,112.26,112.13,82.81400406]
[1644509845063,0.03387819,112.25,112.13,91.88966012]
[1644509845261,1.29174987,112.27,112.14,0.45]
[1644509845462,0.03387819,112.27,112.15,24.0354]
[1644509845662,1.25787168,112.28,112.16,0.45]
[1644509845863,0.03387819,112.27,112.17,10.67]
[1644509846063,1.25787168,112.29,112.17,10.67]
[1644509846263,1.29174987,112.28,112.17,10.92]
[1644509846562,42.11653458,112.27,112.18,39.42111567]
[1644509846764,42.11653458,112.27,112.18,52.78771567]
[1644509846962,42.11653458,112.27,112.17,10.92]
[1644509847164,1.25787168,112.26,112.17,0.25]
[1644509847363,1.25787168,112.26,112.14,10.67]
[1644509847364,1.25787168,112.26,112.14,10.92]
[1644509847563,1.29174987,112.26,112.14,10.67]
[1644509847764,1.25787168,112.24,112.09,10.67]
[1644509847964,1.25787168,112.22,112.12,40.20859515]
[1644509848164,36.22758136,112.21,112.12,40.20859515]
[1644509848365,36.22758136,112.21,112.12,46.20859515]
[1644509848665,36.22758136,112.21,112.12,40.20859515]
[1644509848865,36.22758136,112.21,112.12,0.25]
[1644509849065,36.22758136,112.21,112.07,24.2402]
[1644509849066,37.48545304,112.21,112.07,24.2402]
[1644509849267,1.29174987,112.2,112.07,30.2402]
[1644509849471,1.29174987,112.19,112.07,30.2402]
[1644509849666,1.25787168,112.19,112.07,30.2402]
[1644509849866,36.91900578,112.18,112.08,47.50370519]
[1644509850066,36.91900578,112.18,112.09,13.378]
[1644509850267,36.91900578,112.18,112.1,26.38712055]
[1644509850668,36.91900578,112.18,112.1,26.63712055]
[1644509850968,33.8832,112.24,112.1,26.63712055]
[1644509850969,1.25787168,112.21,112.1,28.21732603]
[1644509851168,1.25787168,112.22,112.1,28.21732603]
[1644509851370,1.25787168,112.22,112.1,71.21522055]
[1644509851770,36.94056032,112.21,112.1,71.21522055]
[1644509851968,36.94056032,112.21,112.1,70.96522055]
[1644509852168,38.198432,112.21,112.1,70.96522055]
[1644509852770,36.94056032,112.21,112.1,70.96522055]
[1644509852970,1.25787168,112.21,112.1,81.63522055]
[1644509853169,1.25787168,112.22,112.11,14.95000548]
[1644509853370,1.29174987,112.24,112.12,55.2359]
[1644509853570,1.25787168,112.23,112.12,56.81610548]
[1644509853768,1.25787168,112.23,112.12,55.4859]
[1644509853969,37.80372001,112.22,112.12,45.2780342]
[1644509854375,43.74608752,112.2,112.12,34.8580342]
[1644509854571,43.74608752,112.2,112.12,34.6080342]
[1644509855370,43.74608752,112.2,112.12,34.8580342]
[1644509857378,43.74608752,112.2,112.12,79.4292342]
[1644509857571,43.74608752,112.2,112.12,90.0992342]